lending/lending_fUSD_20240410
["ID","MTS","AMOUNT","RATE_DAILY","PERIOD"]
[322052635,1712729202016,-2000.0,0.00019709,2]
[322052636,1712729202313,-69.7703352,0.00019709,2]
[322052637,1712729202335,-449.0639,0.0001971,2]
[322052638,1712729202357,-1481.1657648,0.00019744,2]
[322052639,1712729202648,-100.56913499,0.00019744,2]
[322052640,1712729202670,-1102.72833,0.0001975,2]
[322052641,1712729202691,-687.29,0.0001981,2]
[322052642,1712729202713,-109.41253501,0.00019846,2]
[322052643,1712729202999,-666.77313724,0.00019846,2]
[322052644,1712729203019,-538.90046062,0.00019846,2]
[322052645,1712729203040,-152.83,0.00019899,2]
[322052646,1712729203062,-641.49640214,0.00019943,2]
[322052647,1712729203751,-1735.69899118,0.00019943,2]
[322052648,1712729203773,-191.28334051,0.00019943,2]
[322052649,1712729203794,-73.01766831,0.00019943,2]
[322052650,1712729204509,-534.10959796,0.00019943,2]
[322052651,1712729204532,-500.0,0.00019944,2]
[322052652,1712729204552,-500.0,0.00019944,2]
[322052653,1712729204573,-465.89040204,0.00019944,2]
[322052654,1712729205848,-291.82859999,0.00019609,2]
[322052655,1712729205871,-34.10959796,0.00019944,2]
[322052656,1712729205894,-500.0,0.00019944,2]
[322052657,1712729205914,-500.0,0.00019944,2]
[322052658,1712729205936,-500.0,0.00019944,2]
[322052659,1712729205958,-174.06180205,0.00019944,2]
[322052660,1712729206176,-325.93819795,0.00019944,2]
[322052661,1712729206197,-500.0,0.00019944,2]
[322052662,1712729206217,-500.0,0.00019944,2]
[322052663,1712729206239,-500.0,0.00019944,2]
[322052664,1712729206261,-174.06180205,0.00019944,2]
[322052665,1712729206618,-325.93819795,0.00019944,2]
[322052666,1712729206639,-521.60470677,0.00019944,2]
[322052667,1712729206660,-500.0,0.00019944,2]
[322052668,1712729206681,-500.0,0.00019944,2]
[322052669,1712729206700,-152.45709528,0.00019944,2]
[322052670,1712729207155,-370.60661716,0.00019944,2]
[322052671,1712729207178,-500.0,0.00019944,2]
[322052672,1712729207200,-500.0,0.00019944,2]
[322052673,1712729207222,-183.65079822,0.00019944,2]
[322052674,1712729207246,-445.74258462,0.00019944,2]
[322052675,1712729207584,-54.25741538,0.00019944,2]
[322052676,1712729207604,-500.0,0.00019944,2]
[322052677,1712729207625,-749.81,0.00019944,2]
[322052678,1712729207646,-577.50463878,0.00019944,2]
[322052679,1712729207666,-118.42794584,0.00019944,2]
[322052680,1712729207928,-390.134541,0.00019944,2]
[322052681,1712729207950,-500.0,0.00019944,2]
[322052682,1712729207972,-500.0,0.00019944,2]
[322052683,1712729207993,-500.0,0.00019944,2]
[322052684,1712729208015,-109.865459,0.00019944,2]
[322052685,1712729208723,-390.134541,0.00019944,2]
[322052686,1712729208747,-948.34,0.00019944,2]
[322052687,1712729208769,-500.0,0.00019944,2]
[322052688,1712729208794,-161.525459,0.00019944,2]
[322052689,1712729209515,-338.474541,0.00019944,2]
[322052690,1712729209538,-500.0,0.00019944,2]
[322052691,1712729209560,-500.0,0.00019944,2]
[322052692,1712729209581,-503.43939639,0.00019944,2]
[322052693,1712729209603,-158.08606261,0.00019944,2]
[322052694,1712729210111,-341.91393739,0.00019944,2]
[322052695,1712729210133,-500.0,0.00019944,2]
[322052696,1712729210155,-500.0,0.00019944,2]
[322052697,1712729210177,-500.0,0.00019944,2]
[322052698,1712729210198,-158.08606261,0.00019944,2]
[322052699,1712729210629,-341.91393739,0.00019944,2]
[322052700,1712729210651,-500.0,0.00019944,2]
[322052701,1712729210673,-500.0,0.00019944,2]
[322052702,1712729210695,-500.0,0.00019944,2]
[322052703,1712729210717,-158.08606261,0.00019944,2]
[322052705,1712729211225,-1413.32393739,0.00019944,2]
[322052706,1712729211249,-509.96,0.00019944,2]
[322052707,1712729211271,-76.71606261,0.00019944,2]
[322052708,1712729211540,-423.28393739,0.00019944,2]
[322052709,1712729211562,-500.0,0.00019944,2]
[322052710,1712729211583,-500.0,0.00019944,2]
[322052711,1712729211604,-576.71606261,0.00019944,2]
[322052712,1712729212175,-273.18393739,0.00019944,2]
[322052713,1712729212195,-500.0778188,0.00019944,2]
[322052714,1712729212215,-1226.73824381,0.00019944,2]
[322052715,1712729212969,-2000.0,0.00019944,2]
[322052716,1712729214147,-683.49175619,0.00019944,2]
[322052717,1712729214169,-503.97508705,0.00019944,2]
[322052718,1712729214192,-812.53315676,0.00019944,2]
[322052719,1712729215115,-30.84684324,0.00019944,2]
[322052720,1712729215136,-500.0,0.00019944,2]
[322052721,1712729215158,-500.0,0.00019944,2]
[322052722,1712729215179,-500.0,0.00019944,2]
[322052723,1712729215200,-469.15315676,0.00019944,2]
[322052724,1712729217121,-129.08684324,0.00019944,2]
[322052725,1712729217144,-500.0,0.00019944,2]
[322052726,1712729217167,-500.0,0.00019944,2]
[322052727,1712729217191,-870.91315676,0.00019944,2]
[322052730,1712729226441,-1340.0,0.00019794,2]
[322052733,1712729244242,595.15135902,0.00019485,2]
[322052735,1712729248229,269.56270118,0.00019485,2]
[322052737,1712729253514,3921.27642726,0.00019485,2]
[322052739,1712729264036,-1175.81,0.00019794,2]
[322052740,1712729264058,-824.19,0.00019943,2]
[322052741,1712729264676,-2000.0,0.00019943,2]
[322052742,1712729265336,-927.7403352,0.00019943,2]
[322052743,1712729265368,-490.68657232,0.00019943,2]
[322052744,1712729265391,-581.57309248,0.00019943,2]
[322052746,1712729266881,-657.9065676,0.00019943,2]
[322052747,1712729266906,-500.0,0.00019943,2]
[322052748,1712729266932,-842.0934324,0.00019943,2]
[322052749,1712729271890,-444.51542482,0.00019846,2]
[322052750,1712729271915,-300.48457518,0.00019943,2]
[322052751,1712729280608,-355.63,0.00019761,2]
[322052752,1712729280631,-359.26697374,0.00019846,2]
[322052753,1712729280654,-1285.10302626,0.00019943,2]
[322052754,1712729281115,-959.04102458,0.00019943,2]
[322052755,1712729281140,-449.75054521,0.00019943,2]
[322052756,1712729281163,-591.20843021,0.00019943,2]
[322052757,1712729281635,-2000.0,0.00019943,2]
[322052758,1712729282171,-653.66214087,0.0001976,2]
[322052759,1712729282193,-1346.33785913,0.00019943,2]
[322052760,1712729282676,-2000.0,0.00019943,2]
[322052761,1712729302127,-2000.0,0.00019845,2]
[322052762,1712729302622,-2000.0,0.00019845,2]
[322052763,1712729303131,-1352.2491,0.00019845,2]
[322052764,1712729303154,-124.3367106,0.00019943,2]
[322052765,1712729303175,-213.82560365,0.00019943,2]
[322052766,1712729303196,-309.58858575,0.00019943,2]
[322052767,1712729303789,-2000.0,0.00019943,2]
[322052768,1712729321009,437.83151786,0.00018511,2]
[322052769,1712729352641,348.49,0.00017743,2]
[322052779,1712729433377,-19.32942392,0.00019728,2]
[322052789,1712729438330,-656.90000005,0.00019728,2]
[322052994,1712729443051,-3075.70091123,0.00019728,2]
[322052995,1712729443061,-607.12726627,0.00019729,2]
[322052996,1712729443070,-223.43,0.00019732,2]
[322052997,1712729443080,-296.34361656,0.00019846,2]
[322052998,1712729443090,-239.51131582,0.00019846,2]
[322052999,1712729443100,-158.34,0.00019934,2]
[322053000,1712729443110,-158.34,0.00019935,2]
[322053001,1712729443119,-641.0,0.00019942,2]
[322053002,1712729443129,-150.0,0.00019942,2]
[322053003,1712729443139,-500.0,0.00019943,2]
[322053004,1712729443148,-500.0,0.00019943,2]
[322053005,1712729443158,-500.0,0.00019943,2]
[322053006,1712729443167,-500.0,0.00019943,2]
[322053007,1712729443176,-197.16607545,0.00019943,2]
[322053008,1712729443186,-500.0,0.00019943,2]
[322053009,1712729443195,-1032.41412086,0.00019943,2]
[322053010,1712729443205,-1167.13649286,0.00019943,2]
[322053011,1712729443215,-500.0,0.00019944,2]
[322053012,1712729443224,-500.0,0.00019944,2]
[322053013,1712729443233,-500.0,0.00019944,2]
[322053014,1712729443242,-500.0,0.00019944,2]
[322053015,1712729443251,-803.27,0.00019944,2]
[322053016,1712729443260,-500.0,0.00019944,2]
[322053017,1712729443269,-505.18872939,0.00019944,2]
[322053018,1712729443278,-500.0,0.00019944,2]
[322053019,1712729443288,-500.0,0.00019944,2]
[322053020,1712729443297,-925.41,0.00019944,2]
[322053021,1712729443306,-507.64893926,0.00019944,2]
[322053022,1712729443315,-500.0,0.00019944,2]
[322053023,1712729443326,-502.99274683,0.00019944,2]
[322053024,1712729443336,-500.0,0.00019944,2]
[322053025,1712729443345,-500.0,0.00019944,2]
[322053026,1712729443355,-500.0,0.00019944,2]
[322053027,1712729443364,-500.0,0.00019944,2]
[322053028,1712729443374,-500.0,0.00019944,2]
[322053029,1712729443383,-1111.83,0.00019944,2]
[322053030,1712729443393,-500.0,0.00019944,2]
[322053031,1712729443403,-509.66417929,0.00019944,2]
[322053032,1712729443412,-500.0,0.00019944,2]
[322053033,1712729443422,-537.5,0.00019944,2]
[322053034,1712729443431,-500.0,0.00019944,2]
[322053035,1712729443440,-500.0,0.00019944,2]
[322053036,1712729443449,-500.0,0.00019944,2]
[322053037,1712729443458,-504.97755298,0.00019944,2]
[322053038,1712729443467,-500.0,0.00019944,2]
[322053039,1712729443478,-500.0,0.00019944,2]
[322053040,1712729443487,-500.0,0.00019944,2]
[322053041,1712729443496,-500.0,0.00019944,2]
[322053042,1712729443505,-500.0,0.00019944,2]
[322053043,1712729443514,-1386.81,0.00019944,2]
[322053044,1712729443523,-500.0,0.00019944,2]
[322053045,1712729443533,-500.0,0.00019944,2]
[322053046,1712729443541,-500.0,0.00019944,2]
[322053048,1712729443551,-500.0,0.00019944,2]
[322053050,1712729443561,-1275.0,0.00019944,2]
[322053052,1712729443570,-500.0,0.00019944,2]
[322053054,1712729443580,-721.4,0.00019944,2]
[322053056,1712729443589,-500.0,0.00019944,2]
[322053058,1712729443598,-500.0,0.00019944,2]
[322053059,1712729443607,-789.93,0.00019944,2]
[322053061,1712729443616,-590.46268188,0.00019944,2]
[322053062,1712729443625,-500.0,0.00019944,2]
[322053063,1712729443634,-510.75990535,0.00019944,2]
[322053064,1712729443643,-500.0,0.00019944,2]
[322053065,1712729443652,-500.0,0.00019944,2]
[322053066,1712729443662,-1058.93,0.00019944,2]
[322053067,1712729443671,-500.0,0.00019944,2]
[322053068,1712729443680,-1129.6,0.00019944,2]
[322053069,1712729443689,-500.0,0.00019944,2]
[322053070,1712729443698,-9240.72587049,0.00019944,2]
[322053071,1712729443713,-406.13412951,0.00019944,2]
[322053072,1712729443724,-500.0,0.00019944,2]
[322053073,1712729443733,-210.56968316,0.00019944,2]
[322053074,1712729443754,-350.85031684,0.00019944,2]
[322053075,1712729443763,-500.0,0.00019944,2]
[322053076,1712729443771,-75.27670301,0.00019944,2]
[322053077,1712729443783,-543.66329699,0.00019944,2]
[322053078,1712729443792,-500.0,0.00019944,2]
[322053079,1712729443803,-510.50220953,0.00019944,2]
[322053080,1712729443812,-507.7305928,0.00019944,2]
[322053081,1712729443821,-500.0,0.00019944,2]
[322053082,1712729443832,-500.0,0.00019944,2]
[322053083,1712729443841,-500.0,0.00019944,2]
[322053084,1712729443852,-500.0,0.00019944,2]
[322053085,1712729443863,-500.0,0.00019944,2]
[322053086,1712729443873,-500.0,0.00019944,2]
[322053087,1712729443884,-500.0,0.00019944,2]
[322053088,1712729443895,-500.0,0.00019944,2]
[322053089,1712729443904,-500.0,0.00019944,2]
[322053090,1712729443913,-581.0,0.00019944,2]
[322053091,1712729443923,-545.04696858,0.00019944,2]
[322053092,1712729443931,-1186.63,0.00019944,2]
[322053093,1712729443940,-1193.56,0.00019944,2]
[322053094,1712729443950,-500.0,0.00019944,2]
[322053095,1712729443958,-500.0,0.00019944,2]
[322053096,1712729443968,-5676.34,0.00019944,2]
[322053097,1712729443977,-500.0,0.00019944,2]
[322053098,1712729443985,-536.93316654,0.00019944,2]
[322053099,1712729443994,-509.79643037,0.00019944,2]
[322053100,1712729444004,-504.12618101,0.00019944,2]
[322053101,1712729444014,-500.0,0.00019944,2]
[322053102,1712729444023,-500.0,0.00019944,2]
[322053103,1712729444033,-500.0,0.00019944,2]
[322053104,1712729444042,-500.0,0.00019944,2]
[322053105,1712729444050,-1290.29,0.00019944,2]
[322053106,1712729444060,-445.25444177,0.00019944,2]
[322053107,1712729444069,-500.0,0.00019944,2]
[322053108,1712729444079,-500.0,0.00019944,2]
[322053109,1712729444088,-504.93271433,0.00019944,2]
[322053110,1712729444098,-500.0,0.00019944,2]
[322053111,1712729444107,-509.28818175,0.00019944,2]
[322053112,1712729444117,-500.0,0.00019944,2]
[322053113,1712729444126,-500.0,0.00019944,2]
[322053114,1712729444134,-500.0,0.00019944,2]
[322053115,1712729444144,-500.0,0.00019944,2]
[322053116,1712729444153,-548.55078515,0.00019944,2]
[322053117,1712729444163,-595.15,0.00019944,2]
[322053118,1712729444172,-500.0,0.00019944,2]
[322053119,1712729444181,-2950.27,0.00019944,2]
[322053120,1712729444190,-500.0,0.00019944,2]
[322053121,1712729444199,-500.0,0.00019944,2]
[322053122,1712729444208,-500.0,0.00019944,2]
[322053123,1712729444217,-500.0,0.00019944,2]
[322053124,1712729444226,-500.0,0.00019944,2]
[322053125,1712729444236,-1419.48,0.00019944,2]
[322053126,1712729444245,-500.0,0.00019944,2]
[322053127,1712729444254,-508.468028,0.00019944,2]
[322053128,1712729444263,-500.0,0.00019944,2]
[322053129,1712729444273,-500.0,0.00019944,2]
[322053130,1712729444282,-500.0,0.00019944,2]
[322053131,1712729444291,-500.0,0.00019944,2]
[322053132,1712729444301,-500.0,0.00019944,2]
[322053133,1712729444310,-500.0,0.00019944,2]
[322053134,1712729444319,-504.17206962,0.00019944,2]
[322053135,1712729444331,-500.0,0.00019944,2]
[322053136,1712729444340,-500.0,0.00019944,2]
[322053137,1712729444350,-527.64307213,0.00019944,2]
[322053138,1712729444359,-204.26703676,0.00019944,2]
[322053139,1712729444740,-298.44425741,0.00019944,2]
[322053140,1712729444749,-593.00350999,0.00019944,2]
[322053141,1712729444758,-500.0,0.00019944,2]
[322053142,1712729444767,-246.44580483,0.00019944,2]
[322053143,1712729444790,-273.92197414,0.00019944,2]
[322053144,1712729444799,-500.0,0.00019944,2]
[322053145,1712729444809,-318.67272598,0.00019944,2]
[322053146,1712729444842,-518.14018617,0.00019943,2]
[322053147,1712729444855,-181.32727402,0.00019944,2]
[322053148,1712729444864,-529.42534689,0.00019944,2]
[322053149,1712729444873,-500.0,0.00019944,2]
[322053150,1712729444883,-500.0,0.00019944,2]
[322053151,1712729444893,-2383.52583805,0.00019944,2]
[322053152,1712729444920,-949.68416195,0.00019944,2]
[322053153,1712729444930,-778.44,0.00019944,2]
[322053154,1712729444940,-500.0,0.00019944,2]
[322053155,1712729444950,-504.9925232,0.00019944,2]
[322053156,1712729444960,-500.0,0.00019944,2]
[322053157,1712729444971,-500.0,0.00019944,2]
[322053158,1712729444980,-500.0,0.00019944,2]
[322053159,1712729444990,-500.0,0.00019944,2]
[322053160,1712729444999,-292.26331489,0.00019944,2]
[322053163,1712729446037,-207.73668511,0.00019944,2]
[322053164,1712729446046,-47.26331489,0.00019944,2]
[322053166,1712729446196,-324.23779872,0.00019944,2]
[322053167,1712729446208,-135.49590867,0.00019944,2]
[322053168,1712729446217,-500.0,0.00019944,2]
[322053169,1712729446226,-371.30409133,0.00019944,2]
[322053170,1712729446359,-135.48037231,0.00019944,2]
[322053171,1712729446369,-407.11132678,0.00019944,2]
[322053213,1712729508181,213.58,0.00019517,10]
[322053214,1712729531931,749.83,0.0001936,2]
[322053215,1712729535698,184.63,0.00015488,2]
[322053216,1712729549900,150.0,0.00019322,2]
[322053219,1712729580413,170.76,0.00019224,2]
[322053225,1712729634372,2299.07,0.00019197,2]
[322053228,1712729673513,250.0,0.00019231,2]
[322053231,1712729710739,17168.63,0.00019137,2]
[322053235,1712729739346,202.41605989,0.00019944,10]
[322053245,1712729902961,343.52,0.00017186,2]
[322053246,1712729903163,343.52,0.0001945,2]
[322053249,1712729935205,852.79,0.00019052,2]
[322053251,1712729962573,436.59,0.00019074,2]
[322053253,1712730000029,422.46957281,0.00018746,2]
[322053255,1712730087544,400.13,0.00019083,2]
[322053259,1712730380988,309.16,0.0001711,2]
[322053260,1712730381213,309.16,0.00019374,2]
[322053261,1712730411964,900.0,0.00031754,120]
[322053279,1712730475753,568.19,0.00018987,2]
[322053283,1712730514317,2000.0,0.0003,30]
[322053287,1712730608538,679.89,0.00019028,2]
[322053292,1712730632221,-3751.9303352,0.00019528,2]
[322053293,1712730632231,-722.11361532,0.00019529,2]
[322053294,1712730632240,-150.0,0.0001953,2]
[322053295,1712730632249,-109.01579199,0.00019531,2]
[322053296,1712730632262,-1228.22,0.00019531,2]
[322053297,1712730632287,-833.50211302,0.00019531,2]
[322053298,1712730632299,-539.69020108,0.00019531,2]
[322053299,1712730632619,-1616.31417857,0.00019531,2]
[322053300,1712730632631,-5441.06922863,0.00019531,2]
[322053301,1712730632642,-753.66321503,0.00019531,2]
[322053302,1712730632653,-411.26103104,0.00019531,2]
[322053303,1712730632665,-969.45652537,0.00019531,2]
[322053304,1712730632677,-1996.00610671,0.00019531,2]
[322053305,1712730632686,-918.94027,0.0001974,2]
[322053306,1712730632696,-452.98450245,0.00019745,2]
[322053307,1712730632707,-919.32315803,0.00019745,2]
[322053308,1712730632726,-409.4184183,0.00019745,2]
[322053309,1712730632736,-2437.18968927,0.00019833,2]
[322053315,1712730638282,-1806.234545,0.00019833,2]
[322053338,1712730638504,-6113.15499883,0.00019833,2]
[322053343,1712730638731,-1245.55157966,0.00019833,2]
[322053346,1712730638742,-930.62443236,0.00019833,2]
[322053347,1712730638752,-499.99,0.00019833,2]
[322053349,1712730638760,-71.45267405,0.00019842,2]
[322053352,1712730638775,-88.95960312,0.00019842,2]
[322053354,1712730638784,-34221.2155,0.00019843,2]
[322053356,1712730638793,-2147.7509,0.00019843,2]
[322053357,1712730638802,-3414.42,0.00019844,2]
[322053359,1712730638812,-885.3804,0.00019844,2]
[322053361,1712730638821,-8750.14399688,0.00019844,2]
[322053365,1712730638857,-2087.10569754,0.00019844,2]
[322053500,1712730640410,-461.46015058,0.00019844,2]
[322053502,1712730640421,-2133.53015205,0.00019844,2]
[322053508,1712730640466,-6528.0,0.00019844,2]
[322053510,1712730640477,-253.71921543,0.00019844,2]
[322053522,1712730640580,-390.69494403,0.00019844,2]
[322053770,1712730643329,-311.7686698,0.00019844,2]
[322053771,1712730643349,-21053.05037369,0.00019844,2]
[322053772,1712730643359,-37497.8579,0.00019844,2]
[322053773,1712730643368,-10000.0,0.00019845,2]
[322053774,1712730643378,-3612.9564,0.00019845,2]
[322053775,1712730643387,-1781.72607874,0.00019873,2]
[322053776,1712730643396,-250.0,0.000199,2]
[322053777,1712730643406,-253.6,0.000199,2]
[322053778,1712730643415,-519.08,0.00019941,2]
[322053779,1712730643424,-500.0,0.00019941,2]
[322053780,1712730643433,-621.79,0.00019941,2]
[322053781,1712730643442,-500.0,0.00019941,2]
[322053782,1712730643451,-500.0,0.00019941,2]
[322053783,1712730643460,-914.37,0.00019941,2]
[322053784,1712730643469,-837.08,0.00019941,2]
[322053785,1712730643478,-500.0,0.00019941,2]
[322053786,1712730643487,-525.86,0.00019941,2]
[322053787,1712730643496,-2042.02,0.00019941,2]
[322053788,1712730643505,-503.25421844,0.00019941,2]
[322053789,1712730643514,-3303.41,0.00019941,2]
[322053790,1712730643523,-760.15,0.00019941,2]
[322053791,1712730643532,-756.55,0.00019941,2]
[322053792,1712730643541,-500.0,0.00019941,2]
[322053793,1712730643550,-1819.71,0.00019941,2]
[322053794,1712730643560,-500.0,0.00019941,2]
[322053795,1712730643570,-718.56,0.00019941,2]
[322053796,1712730643579,-1505.94,0.00019941,2]
[322053797,1712730643588,-500.0,0.00019941,2]
[322053798,1712730643597,-936.54,0.00019941,2]
[322053799,1712730643607,-500.0,0.00019941,2]
[322053800,1712730643616,-500.0,0.00019941,2]
[322053801,1712730643626,-500.0,0.00019941,2]
[322053802,1712730643635,-500.0,0.00019941,2]
[322053803,1712730643644,-500.0,0.00019941,2]
[322053804,1712730643653,-527.71811146,0.00019941,2]
[322053805,1712730643662,-754.57,0.00019941,2]
[322053806,1712730643672,-500.0,0.00019941,2]
[322053807,1712730643681,-506.65679018,0.00019941,2]
[322053808,1712730643690,-500.0,0.00019941,2]
[322053809,1712730643700,-504.17584385,0.00019941,2]
[322053810,1712730643710,-500.0,0.00019941,2]
[322053811,1712730643719,-500.0,0.00019941,2]
[322053812,1712730643728,-1596.4,0.00019941,2]
[322053813,1712730643737,-500.0,0.00019941,2]
[322053814,1712730643746,-500.0,0.00019941,2]
[322053815,1712730643755,-1241.97,0.00019941,2]
[322053816,1712730643765,-503.75912921,0.00019941,2]
[322053817,1712730643774,-500.0,0.00019941,2]
[322053818,1712730643784,-500.0,0.00019941,2]
[322053819,1712730643793,-500.0,0.00019941,2]
[322053820,1712730643802,-500.0,0.00019941,2]
[322053821,1712730643812,-500.0,0.00019941,2]
[322053822,1712730643821,-500.0,0.00019941,2]
[322053823,1712730643831,-500.0,0.00019941,2]
[322053824,1712730643841,-500.0,0.00019941,2]
[322053825,1712730643850,-508.69597259,0.00019941,2]
[322053826,1712730643859,-256.1266979,0.00019942,2]
[322053827,1712730643868,-500.0,0.00019942,2]
[322053828,1712730643878,-500.0,0.00019942,2]
[322053829,1712730643887,-500.0,0.00019942,2]
[322053830,1712730643896,-500.0,0.00019942,2]
[322053831,1712730643905,-500.0,0.00019942,2]
[322053832,1712730643914,-500.0,0.00019942,2]
[322053833,1712730643923,-500.0,0.00019942,2]
[322053834,1712730643932,-500.0,0.00019942,2]
[322053835,1712730643941,-500.0,0.00019942,2]
[322053836,1712730643951,-502.28125147,0.00019942,2]
[322053838,1712730643960,-500.0,0.00019942,2]
[322053840,1712730643969,-500.0,0.00019942,2]
[322053842,1712730643978,-500.0,0.00019942,2]
[322053844,1712730643987,-500.0,0.00019942,2]
[322053846,1712730643996,-500.0,0.00019942,2]
[322053848,1712730644005,-500.0,0.00019942,2]
[322053850,1712730644014,-500.0,0.00019942,2]
[322053852,1712730644023,-500.0,0.00019942,2]
[322053854,1712730644032,-500.0,0.00019942,2]
[322053856,1712730644041,-500.0,0.00019942,2]
[322053858,1712730644049,-500.0,0.00019942,2]
[322053860,1712730644059,-516.38610683,0.00019942,2]
[322053862,1712730644068,-500.0,0.00019942,2]
[322053864,1712730644077,-570.28142896,0.00019942,2]
[322053866,1712730644087,-500.0,0.00019942,2]
[322053868,1712730644095,-500.0,0.00019942,2]
[322053869,1712730644104,-500.0,0.00019942,2]
[322053870,1712730644113,-500.0,0.00019942,2]
[322053871,1712730644122,-500.0,0.00019942,2]
[322053872,1712730644131,-500.0,0.00019942,2]
[322053873,1712730644140,-500.0,0.00019942,2]
[322053874,1712730644149,-500.0,0.00019942,2]
[322053875,1712730644158,-500.0,0.00019942,2]
[322053876,1712730644168,-500.0,0.00019942,2]
[322053877,1712730644177,-500.0,0.00019942,2]
[322053878,1712730644190,-500.0,0.00019942,2]
[322053879,1712730644199,-502.635993,0.00019942,2]
[322053880,1712730644208,-500.0,0.00019942,2]
[322053881,1712730644217,-500.0,0.00019942,2]
[322053882,1712730644227,-301.16500429,0.00019942,2]
[322053883,1712730644236,-500.0,0.00019942,2]
[322053884,1712730644245,-500.0,0.00019942,2]
[322053885,1712730644254,-500.0,0.00019942,2]
[322053886,1712730644264,-500.0,0.00019942,2]
[322053887,1712730644274,-500.0,0.00019942,2]
[322053888,1712730644283,-500.0,0.00019942,2]
[322053889,1712730644292,-500.0,0.00019942,2]
[322053890,1712730644302,-500.0,0.00019942,2]
[322053891,1712730644311,-500.0,0.00019942,2]
[322053892,1712730644321,-500.0,0.00019942,2]
[322053893,1712730644330,-500.0,0.00019942,2]
[322053894,1712730644339,-500.0,0.00019942,2]
[322053895,1712730644349,-500.0,0.00019942,2]
[322053896,1712730644358,-500.0,0.00019942,2]
[322053897,1712730644367,-500.0,0.00019942,2]
[322053898,1712730644377,-500.0,0.00019942,2]
[322053899,1712730644387,-500.0,0.00019942,2]
[322053900,1712730644396,-150.0,0.00019942,2]
[322053901,1712730644405,-500.0,0.00019942,2]
[322053902,1712730644415,-500.0,0.00019942,2]
[322053903,1712730644425,-510.66371696,0.00019942,2]
[322053904,1712730644435,-500.0,0.00019942,2]
[322053905,1712730644445,-500.0,0.00019942,2]
[322053906,1712730644455,-500.0,0.00019942,2]
[322053907,1712730644465,-500.0,0.00019942,2]
[322053908,1712730644474,-500.0,0.00019942,2]
[322053909,1712730644484,-500.0,0.00019942,2]
[322053910,1712730644494,-500.0,0.00019942,2]
[322053911,1712730644503,-500.0,0.00019942,2]
[322053912,1712730644513,-500.0,0.00019942,2]
[322053913,1712730644522,-823.94,0.00019942,2]
[322053914,1712730644532,-500.0,0.00019942,2]
[322053915,1712730644541,-500.0,0.00019942,2]
[322053916,1712730644550,-500.0,0.00019942,2]
[322053917,1712730644560,-500.0,0.00019942,2]
[322053918,1712730644570,-500.0,0.00019942,2]
[322053919,1712730644580,-544.09608534,0.00019942,2]
[322053920,1712730644589,-503.23872621,0.00019942,2]
[322053921,1712730644598,-92.94686352,0.00019942,2]
[322053922,1712730644621,-500.0,0.00019941,2]
[322053923,1712730644630,-407.05313648,0.00019942,2]
[322053924,1712730644640,-525.28147448,0.00019942,2]
[322053925,1712730644649,-500.0,0.00019942,2]
[322053926,1712730644658,-500.0,0.00019942,2]
[322053927,1712730644667,-500.0,0.00019942,2]
[322053928,1712730644677,-500.0,0.00019942,2]
[322053929,1712730644686,-542.95,0.00019942,2]
[322053930,1712730644695,-644.41702765,0.00019942,2]
[322053931,1712730644704,-500.0,0.00019942,2]
[322053932,1712730644713,-500.0,0.00019942,2]